Cogmind - Beta 11.1 @@@ ROGUE MODE // 2022.07.09 @ 20:59:51 Player: Jezoensis Result: Establishing Free Derelict Territories! Performance ------------- Evolutions (9) 4500 Regions Visited (26) 5200 Robots Destroyed (303) 1515 Value Destroyed (15154) 15154 Prototype IDs (64) 1280 Alien Tech Used (0) 0 Bonus (36069) 36069 TOTAL SCORE: 63718 Bonus ------- High Alert Combat Kills 3294 Follower Combat Kills 676 Entered DSFs 500 Network Hubs Disabled 400 Aligned with FarCom 300 Met Warlord at Base 500 MAIN.C Attacked Warlord 500 Warlord Defense Kills 4038 A7 Reached Mainframe 300 Met R17 at Cetus 500 Destroyed MAIN.C Guards 500 Met MAIN.C 5000 Hacked MAIN.C 300 Destroyed MAIN.C Shell 5000 Destroyed MAIN.C 10000 Met Warlord at Command 2000 Win 3000 Friendly Fire -739 Cogmind --------- Core Integrity 1561/1600 Matter 133/300 Energy 280/280 System Corruption 3% Temperature Cool (81) Movement Immobile (Siege) Location Free Derelict Territories Parts ------- > --- POWER (2) -------- Light Quantum Reactor Light Quantum Reactor > --- PROPULSION (5) --- Improved Medium Treads Biometal Heavy Treads Advanced Heavy Siege Treads > --- UTILITY (11) ----- Advanced Cooling System Experimental Coolant Injector Huge Storage Unit Enhanced Optical Array Advanced Salvage Targeting Computer Advanced Targeting Computer Advanced Target Analyzer Experimental Core Analyzer Advanced Kinecellerator Improved Weapon Cycler Improved Force Field > --- WEAPON (7) ------- KE Penetrator KE Penetrator KE Penetrator Improved KE Penetrator Railgun Railgun Compact Linear Accelerator > --- INVENTORY (25) --- Particle Reactor Quantum Reactor Light Quantum Reactor Biometal Heavy Treads Biometal Heavy Treads Advanced Heavy Siege Treads Compact Matter Pod (150) Improved Transmission Jammer Advanced Transmission Jammer Improved Focal Shield Advanced Thermal Shield Advanced EM Disruption Field Advanced Shield Generator Force Field Long-range Tractor Beam Enhanced Nova Cannon Heavy Battle Rifle Heavy Machine Gun Heavy Machine Gun Advanced Remote Datajack Peak State ------------ > --- POWER ------------ Light Quantum Reactor Light Quantum Reactor > --- PROPULSION ------- Improved Medium Treads Biometal Heavy Treads Advanced Heavy Siege Treads > --- UTILITY ---------- Advanced Cooling System Experimental Coolant Injector Huge Storage Unit Enhanced Optical Array Advanced Salvage Targeting Computer Advanced Targeting Computer Advanced Target Analyzer Experimental Core Analyzer Advanced Kinecellerator Improved Weapon Cycler Improved Force Field > --- WEAPON ----------- KE Penetrator KE Penetrator KE Penetrator Improved KE Penetrator Railgun Railgun Compact Linear Accelerator > --- INVENTORY -------- Particle Reactor Quantum Reactor Light Quantum Reactor Biometal Heavy Treads Biometal Heavy Treads Advanced Heavy Siege Treads Compact Matter Pod Improved Transmission Jammer Advanced Transmission Jammer Improved Focal Shield Advanced Thermal Shield Advanced EM Disruption Field Advanced Shield Generator Force Field Long-range Tractor Beam Enhanced Nova Cannon Heavy Battle Rifle Heavy Machine Gun Heavy Machine Gun Advanced Remote Datajack [Rating: 193] Favorites ----------- Power Cooled Fission Core Engine F-cell Engine Power Core Cooled Fission Core Reactor Light Quantum Reactor Propulsion Wheel Treads Medium Treads Wheel Wheel Utility Terrain Scan Processor Device Improved Terrain Scanner Storage Huge Storage Unit Processor Terrain Scan Processor Hackware Hacking Suite Protection Improved Utility Shielding Weapon KE Penetrator Energy Cannon Advanced Plasma Cannon Ballistic Gun KE Penetrator Ballistic Cannon Mini Assault Cannon Launcher Grenade Launcher Special Weapon RU-N14's Throwing Claymores v3 Impact Weapon Power Maul Slashing Weapon Katana Build | -11 -10 -10 -9 -9 -9 -8 -8 -7 -7 -7 -6 -6 -5 -5 -5 -5 -4 -4 -4 -4 -4 -4 -3 -2 -1 -1 ------- Run | Scr Mat Min Mat Min Exi Min Mat Fac Low Low Fac DSF Fac Upp Upp War Pro Fac Ext Cet Arc Hub Res Res Acc Com Slots Evolved 18 | . . . 2 . . . 2 2 . . 2 . 2 . . . . 2 . . . . 2 2 2 . Power 1 | . . . . . . . . . . . . . 1 . . . . . . . . . . . . . Propulsion 3 | . . . 1 . . . . 1 . . . . . . . . . 1 . . . . . . . . Utility 9 | . . . 1 . . . 1 . . . 1 . 1 . . . . 1 . . . . 1 1 2 . Weapon 5 | . . . . . . . 1 1 . . 1 . . . . . . . . . . . 1 1 . . Parts Attached 512 | 9 22 9 30 9 . 21 22 20 5 1 3 31 16 3 11 32 13 17 27 28 4 15 12 59 50 43 Power 19 | 1 1 . 2 . . 1 . 1 . . . 1 2 . 2 . . 2 1 1 . . . 1 2 1 Engine 8 | 1 1 . 2 . . 1 . 1 . . . 1 1 . . . . . . . . . . . . . Core 5 | . . . . . . . . . . . . . 1 . 2 . . 1 1 . . . . . . . Reactor 6 | . . . . . . . . . . . . . . . . . . 1 . 1 . . . 1 2 1 Propulsion 102 | 3 8 5 11 5 . 11 5 6 2 . . 13 3 . 2 8 5 3 1 3 . . . 5 3 . Treads 55 | . 4 3 4 1 . 5 2 2 1 . . 8 1 . 1 5 3 3 1 3 . . . 5 3 . Leg . | . . . . . . . . . . . . . . . . . . . . . . . . . . . Wheel 47 | 3 4 2 7 4 . 6 3 4 1 . . 5 2 . 1 3 2 . . . . . . . . . Hover . | . . . . . . . . . . . . . . . . . . . . . . . . . . . Flight . | . . . . . . . . . . . . . . . . . . . . . . . . . . . Utility 248 | 2 4 . 10 4 . 7 10 7 3 1 1 9 7 1 5 10 5 9 21 12 4 8 8 42 28 30 Device 206 | 1 2 . 8 2 . 7 4 4 3 1 . 5 5 1 4 10 4 8 17 11 3 7 5 39 27 28 Storage 8 | 1 2 . . 1 . . 2 2 . . . . . . . . . . . . . . . . . . Processor 13 | . . . . 1 . . 2 . . . . 2 . . 1 . . 1 . . . . 2 3 . 1 Hackware 7 | . . . . . . . . 1 . . . . 1 . . . . . 3 . . . . . 1 1 Protection 14 | . . . 2 . . . 2 . . . 1 2 1 . . . 1 . 1 1 1 1 1 . . . Artifact . | . . . . . . . . . . . . . . . . . . . . . . . . . . . Weapon 143 | 3 9 4 7 . . 2 7 6 . . 2 8 4 2 2 14 3 3 4 12 . 7 4 11 17 12 Energy Gun . | . . . . . . . . . . . . . . . . . . . . . . . . . . . Energy Cannon 14 | . . . . . . . . . . . . . . 1 1 4 . . . . . 3 . 2 1 2 Ballistic Gun 88 | 3 5 2 5 . . 1 5 4 . . 1 5 2 1 . 4 3 1 4 10 . 3 4 7 10 8 Ballistic Cannon 14 | . . . . . . . . 2 . . . 1 . . . . . . . 1 . 1 . 2 6 1 Launcher 4 | . 1 2 1 . . . . . . . . . . . . . . . . . . . . . . . Special Weapon 9 | . 3 . 1 . . 1 . . . . . . . . . 3 . . . . . . . . . 1 Impact Weapon 10 | . . . . . . . . . . . . 2 1 . 1 3 . 2 . 1 . . . . . . Slashing Weapon 4 | . . . . . . . 2 . . . 1 . 1 . . . . . . . . . . . . . Piercing Weapon . | . . . . . . . . . . . . . . . . . . . . . . . . . . . Special Melee Weapon . | . . . . . . . . . . . . . . . . . . . . . . . . . . . Unidentified Prototypes 20 | . . . . . . . 1 2 . . . . 2 . . 3 . 2 . 4 . . 1 5 . . Corrupted Parts 2 | . . . . . . . . . . . . 1 . . . . . . . 1 . . . . . . System Corruption 10 | . . . . . . . . . . . . 3 . . . . . . . 7 . . . . . . Parts Lost 34 | . . 5 1 . . 1 3 3 1 . . 7 . . . . 1 . . . . . . 3 7 2 Power 3 | . . . . . . . . 1 . . . 1 . . . . . . . . . . . . 1 . Propulsion 10 | . . 3 . . . . . 1 1 . . 3 . . . . . . . . . . . . 2 . Utility 6 | . . . . . . 1 2 . . . . . . . . . 1 . . . . . . 1 1 . Weapon 15 | . . 2 1 . . . 1 1 . . . 3 . . . . . . . . . . . 2 3 2 Highest Loss Streak 5 | . . 5 1 . . 1 3 2 1 . . 4 . . . . 1 . . . . . . 2 3 2 To Critical Strikes 1 | . . 1 . . . . . . . . . . . . . . . . . . . . . . . . Average Slot Usage (%) 89 | . 99 93 97 100 100 100 99 92 91 92 93 87 82 82 82 86 82 82 82 82 89 89 89 90 91 91 Engine 4 | . 14 14 11 11 11 11 9 7 7 7 6 5 5 5 5 5 5 5 1 . . . . . . . Core 3 | . . . . . . . . . . . . . 5 5 5 5 5 4 8 8 5 5 4 4 4 . Reactor 1 | . . . . . . . . . . . . . . . . . . . . 1 5 5 4 4 4 7 Treads 10 | . 1 12 2 1 . 3 . 7 7 7 6 14 5 5 5 6 11 25 24 16 15 15 14 12 12 12 Wheel 11 | . 26 12 30 31 33 29 26 14 14 15 13 8 17 17 16 15 10 . . . . . . . . . Device 11 | . 14 14 11 11 11 11 10 6 7 7 6 3 7 5 10 11 11 14 14 14 14 12 13 14 16 16 Storage 6 | . 14 14 11 11 11 11 10 7 7 7 6 6 5 5 5 5 5 5 5 5 5 5 4 4 4 4 Processor 12 | . . . . 3 11 11 13 15 15 15 13 18 11 11 11 11 11 10 10 10 10 10 14 17 20 19 Protection 2 | . . . 8 7 . . . . . . 6 3 5 5 5 5 4 5 4 5 5 7 4 1 . . Ballistic Gun 17 | . 22 22 20 22 22 21 26 15 15 15 15 19 5 5 6 5 7 6 9 17 26 23 24 28 25 25 Ballistic Cannon 1 | . . . . . . . . 8 15 15 10 2 . . . . . . . . . . . . 2 1 Naked Turns . | . . . . . . . . . . . . . . . . . . . . . . . . . . . Heaviest Build 174 | 13 32 32 37 54 54 54 97 106 106 106 110 110 121 126 134 162 133 135 146 158 157 171 163 173 174 173 Greatest Support 187 | 26 20 40 36 42 36 36 36 44 38 38 38 91 42 42 42 113 32 141 153 187 187 187 187 187 185 185 Greatest Overweight (x) 10 | . 1 1 1 1 1 2 2 3 2 2 2 10 2 2 3 5 4 . . . . . . . . . Average Overweight (x) 1 | . . . . . 1 1 1 1 2 2 2 4 2 2 2 2 3 . . . . . . . . . Largest Inventory Capacity 25 | 8 15 15 15 20 20 20 25 25 25 25 25 25 25 25 25 25 25 25 25 25 25 25 25 25 25 25 Average Capacity 23 | 6 11 15 15 16 20 20 20 24 25 25 25 25 25 25 25 25 25 25 25 25 25 25 25 25 25 25 Most Carried 25 | 7 15 15 15 16 20 20 21 25 24 25 25 25 25 25 25 25 25 25 25 25 25 25 25 25 25 25 Average Carried 22 | 4 10 11 13 15 17 19 19 23 22 24 24 23 24 24 24 24 24 23 25 24 24 24 23 24 23 24 Final Capacity 25 | 8 15 15 15 20 20 20 25 25 25 25 25 25 25 25 25 25 25 25 25 25 25 25 25 25 25 25 Final Carried 25 | 7 15 11 15 16 20 19 21 23 24 25 25 25 25 25 25 25 23 25 25 25 25 25 25 25 25 23 Class Distribution -------------------- 25% | Scavenger-Skirmisher 24% | Scavenger-Mutant 15% | Scavenger-Executioner 12% | Assassin 11% | Mutant 8% | Scavenger-Assassin Dominant Class ---------------- Mutant | -10/Materials Mutant | -10/Mines Scavenger-Mutant | -9/Materials Scavenger-Mutant | -9/Mines Scavenger-Mutant | -9/Exiles Scavenger-Skirmisher | -8/Mines Scavenger-Skirmisher | -8/Materials Scavenger-Assassin | -7/Factory Scavenger-Skirmisher | -7/Lower Caves Skirmisher | -7/Lower Caves Scavenger-Assassin | -6/Factory Scavenger-Skirmisher | -6/DSF Assassin | -5/Factory Assassin | -5/Upper Caves Mutant | -5/Upper Caves Assassin | -5/Warlord Scavenger-Skirmisher | -4/Proximity Caves Scavenger-Assassin | -4/Factory Scavenger-Skirmisher | -4/Extension Scavenger-Skirmisher | -4/Cetus Scavenger-Skirmisher | -4/Archives Scavenger-Skirmisher | -4/Hub_04(d) Scavenger-Mutant | -3/Research Scavenger-Executioner | -2/Research Scavenger-Executioner | -1/Access Scavenger-Executioner | -1/Command Resources | -11 -10 -10 -9 -9 -9 -8 -8 -7 -7 -7 -6 -6 -5 -5 -5 -5 -4 -4 -4 -4 -4 -4 -3 -2 -1 -1 ----------- Run | Scr Mat Min Mat Min Exi Min Mat Fac Low Low Fac DSF Fac Upp Upp War Pro Fac Ext Cet Arc Hub Res Res Acc Com Matter Collected 14839 | 322 303 185 578 262 . 387 394 233 271 48 . 1181 347 10 243 372 297 720 1029 784 146 408 396 2529 1522 1872 Remotely 7584 | . . . . . . . . . . . . 678 135 . . 312 210 329 698 510 136 36 . 2153 1303 1084 Salvage Created 16709 | 119 381 148 595 196 . 403 334 142 222 . . 990 337 . 268 471 347 575 1636 650 259 499 612 3114 1748 2663 Parts 729 | 9 31 4 43 7 . 25 22 13 4 . . 36 11 . 9 20 17 24 64 23 12 15 22 120 93 105 Haulers Intercepted 7 | . 1 . 2 . . . 2 . . . . . . . . . . . . . . 1 . 1 . . Recyclers Shooed 11 | . . . 4 . . . . . . . . . . . . . . . 2 . . 1 2 . 1 1 Parts Field Recycled . | . . . . . . . . . . . . . . . . . . . . . . . . . . . Retrieved Matter . | . . . . . . . . . . . . . . . . . . . . . . . . . . . Parts Self-Destructed 32 | . . . . . . . . . 8 . . . . . 7 . 17 . . . . . . . . . Prevented . | . . . . . . . . . . . . . . . . . . . . . . . . . . . Kills | -11 -10 -10 -9 -9 -9 -8 -8 -7 -7 -7 -6 -6 -5 -5 -5 -5 -4 -4 -4 -4 -4 -4 -3 -2 -1 -1 ------- Run | Scr Mat Min Mat Min Exi Min Mat Fac Low Low Fac DSF Fac Upp Upp War Pro Fac Ext Cet Arc Hub Res Res Acc Com Combat Hostiles Destroyed 227 | . 6 8 14 1 . 13 4 2 2 . . 10 6 . 4 34 9 4 12 9 3 2 6 32 28 18 Melee 1 | . . . . . . . . 1 . . . . . . . . . . . . . . . . . . Guns 177 | . 6 2 10 1 . 13 4 . . . . 9 6 . 4 . 8 4 12 9 3 2 6 32 28 18 Cannons 11 | . . . . . . . . 1 2 . . 1 . . . 7 . . . . . . . . . . AOE 38 | . . 6 4 . . . . . . . . . . . . 27 1 . . . . . . . . . Classes Destroyed 24 | 2 6 3 3 . . . 1 1 . . . 2 . . . 3 . 1 1 . . . . . 1 . Worker 17 | . 1 . . . . 1 . 1 . . . . 1 . . . . . . . . 4 . 5 2 2 Builder 12 | . 2 . 1 1 . . . . . . . . . . . . . 1 3 . . 1 . 1 2 . Tunneler 4 | 3 . . . . . . . . . . . . . . . . . . . . . 1 . . . . Hauler 7 | . 1 . 2 . . . 2 . . . . . . . . . . . . . . 1 . 1 . . Recycler 20 | 1 . 1 1 1 . 1 . 1 . . . . 1 . . . . 1 5 . . 1 1 2 . 3 Mechanic 3 | . 1 . . . . . . . . . . . . . . 2 . . . . . . . . . . Operator 1 | . . . . . . . . . . . . . . . . . . . 1 . . . . . . . Watcher 16 | . 2 . . . . . 1 1 . . . . . . . . . 1 . . . 1 1 4 2 3 Swarmer 48 | . . . 7 . . 10 . 1 . . . . 5 . . 5 4 . 1 . . . 1 5 9 . Cutter 6 | . . . . . . . . . . . . . . . . . . . . . . . . . 6 . Grunt 58 | . 6 . 4 1 . 3 2 . . . . 4 . . . 10 2 3 2 2 . . 4 7 3 5 Brawler 5 | . . . 1 . . . . . . . . . . . . 2 . . . . . . . . . 2 Duelist 9 | . . . . . . . 1 . . . . . . . 2 2 1 . 3 . . . . . . . Protector 4 | . . . . . . . . . . . . . . . . 4 . . . . . . . . . . Sentry 15 | . . . 2 . . . 1 . 1 . . . . . 1 . . . 4 . 3 2 . . . 1 Demolisher 5 | . . 2 . . . . . . . . . . . . . 1 . . . . . . . 2 . . Specialist 4 | . . . . . . . . . . . . 3 . . . . . . . . . . . . . 1 Hunter 18 | . . . . . . . . . 1 . . 1 . . 1 1 . . . 1 . . . 9 4 . Programmer 24 | . . . . . . . . 1 . . . 1 1 . . 6 2 . . . . . . 3 5 5 Heavy 3 | . . . . . . . . . . . . 1 . . . . . . . . . . 1 . 1 . Behemoth 4 | . . . . . . . . . . . . . . . . . . 1 2 . . . . 1 . . Cetus Guard 6 | . . . . . . . . . . . . . . . . . . . . 6 . . . . . . M Guard 1 | . . . . . . . . . . . . . . . . . . . . . . . . . . 1 Combat Programmer 1 | . . . . . . . . . . . . . . . . . . . . . . . . . . 1 Striker 4 | . . . . . . . . . . . . . . . . 2 . . . . . . . 2 . . Executioner 4 | . . . . . . . . . . . . . . . . 1 . . . . . . . 3 . . Packrat 2 | . . . . . . . . . 2 . . . . . . . . . . . . . . . . . Assembled 6 | . . 6 . . . . . . . . . . . . . . . . . . . . . . . . Thug 1 | . . . . 1 . . . . . . . . . . . . . . . . . . . . . . Guerrilla 1 | . . 1 . . . . . . . . . . . . . . . . . . . . . . . . Best Kill Streak 22 | 4 4 9 12 1 . 4 3 3 1 . . 4 5 . 3 13 7 5 8 4 2 5 4 22 11 4 Combat Bots Only 18 | . 2 8 9 1 . 4 3 1 1 . . 4 5 . 3 13 7 3 4 4 2 1 4 18 9 4 Max Kills in Single Turn 7 | 1 2 6 2 1 . 2 1 1 1 . . 1 1 . 1 7 2 2 1 1 1 5 2 2 3 2 Gunslinging 2 | . . . 1 . . 1 . . . . . . . . . . . . . . . . 1 1 2 1 Exploded 7 | . . 5 1 . . . . . . . . . . . . 7 1 . . . . . . . . . Melee 1 | . . . . . . . . 1 . . . . . . . . . . . . . . . . . . Uniques/NPCs Destroyed 2 | . . . . . . . . . . . . . . . . . . . . . . . . . . 2 MAIN.C Shell (-1/Command) MAIN.C (-1/Command) Combat | -11 -10 -10 -9 -9 -9 -8 -8 -7 -7 -7 -6 -6 -5 -5 -5 -5 -4 -4 -4 -4 -4 -4 -3 -2 -1 -1 -------- Run | Scr Mat Min Mat Min Exi Min Mat Fac Low Low Fac DSF Fac Upp Upp War Pro Fac Ext Cet Arc Hub Res Res Acc Com Damage Taken 12940 | . 288 693 336 50 . 501 302 785 205 . . 1403 313 . 131 422 247 327 155 179 91 133 924 2630 2146 679 Core 1103 | . 23 160 22 . . 43 33 144 57 . . 292 15 . 23 27 47 . 11 . . . 11 156 29 10 Absorbed by Shields 3193 | . . . . . . . . . . . . . 40 . 36 325 164 176 159 184 93 88 290 961 429 248 Reduced by Siege Mode 919 | . . . . . . . . . . . . . . . . . . . . 13 10 . 42 479 312 63 Redirected to Shielding 215 | . . . . . . . 9 . . . . 10 9 . 11 42 32 33 13 3 9 31 . 13 . . Core Remaining (%) 82 | 100 . 26 . . . 83 94 . . 71 . 65 . . . . 88 . . . . 99 99 89 . 97 Volleys Fired 583 | 7 34 10 36 7 . 41 22 6 15 . . 35 10 2 20 20 9 21 39 29 7 25 16 69 51 52 Largest 7 | 2 2 2 2 2 . 2 3 4 4 . . 5 1 1 2 3 5 2 2 5 5 5 6 7 7 7 Hottest 272 | 40 100 60 100 46 . 100 69 152 152 . . 155 60 90 150 135 134 95 95 139 139 225 176 261 237 272 Shots Fired 1963 | 14 58 20 68 14 . 79 66 21 42 . . 128 10 2 28 43 21 42 76 88 35 85 76 422 235 290 Gun 1776 | 14 48 16 63 14 . 76 66 11 18 . . 118 10 . 13 3 19 42 76 85 35 69 72 412 219 277 Cannon 146 | . . . . . . . . 10 24 . . 10 . 2 15 24 . . . 3 . 16 4 10 16 12 Launcher 9 | . 1 4 4 . . . . . . . . . . . . . . . . . . . . . . . Special 32 | . 9 . 1 . . 3 . . . . . . . . . 16 2 . . . . . . . . 1 Kinetic 1856 | 14 48 16 63 14 . 76 66 21 42 . . 128 10 . 13 3 19 42 76 88 35 73 72 414 235 288 Thermal 55 | . 9 . 1 . . 3 . . . . . . . 2 15 . . . . . . 12 4 8 . 1 Explosive 27 | . 1 4 4 . . . . . . . . . . . . 16 2 . . . . . . . . . Electromagnetic . | . . . . . . . . . . . . . . . . . . . . . . . . . . . Entropic 24 | . . . . . . . . . . . . . . . . 24 . . . . . . . . . . Robot Hit Streak 52 | 3 12 7 11 5 . 15 9 5 5 . . 19 4 . 9 11 9 28 17 19 12 15 17 26 43 52 Robot Miss Streak 8 | 2 3 1 8 2 . 3 4 3 2 . . 2 4 . 4 2 3 5 5 4 4 7 2 3 8 8 Penetration Max 2 | . . . . . . . . . . . . . . . . . . 1 1 1 . 1 1 2 2 1 Secondary Targets 54 | . 1 . 1 . . 1 1 . . . . 1 . . 1 . 1 1 . 4 1 . 3 16 13 9 Max Gunslinging Chain 2 | . 1 . 1 . . 1 1 . . . . 1 . . 1 . 1 1 . 1 1 . 1 1 2 1 Shots Hit Robots 1270 | 7 29 14 38 10 . 55 37 9 16 . . 91 12 . 12 26 16 34 67 56 21 26 52 290 139 213 Core Hits 710 | 5 17 22 28 5 . 21 15 6 6 . . 35 8 . 10 56 16 18 52 32 10 19 20 117 82 110 Critical Kills 30 | 1 . . . . . . . . . . . . 1 . . . . . . 2 1 1 2 10 7 5 Critical Parts Destroyed 43 | . . . 1 . . . . . . . . . 1 . . . . . . . . . 2 20 3 16 Critical Strikes 94 | 1 . . 1 . . . . . 1 . . 1 2 . . 9 1 . 1 3 2 1 4 31 10 26 Destroy 80 | 1 . . 1 . . . . . . . . 1 . . . . . . 1 2 2 1 4 31 10 26 Blast 2 | . . . . . . . . . 1 . . . . . . . . . . 1 . . . . . . Smash 2 | . . . . . . . . . . . . . 2 . . . . . . . . . . . . . Sever 2 | . . . . . . . . . . . . . . . . 1 1 . . . . . . . . . Sunder 8 | . . . . . . . . . . . . . . . . 8 . . . . . . . . . . Melee Attacks 31 | . . . . . . . 3 7 . . 2 2 6 2 . . . 7 1 1 . . . . . . Impact 18 | . . . . . . . . . . . . 2 5 2 . . . 7 1 1 . . . . . . Slashing 13 | . . . . . . . 3 7 . . 2 . 1 . . . . . . . . . . . . . Piercing . | . . . . . . . . . . . . . . . . . . . . . . . . . . . Sneak Attacks 4 | . . . . . . . . . . . . . 2 . . . . 1 1 . . . . . . . Combat Hostiles . | . . . . . . . . . . . . . . . . . . . . . . . . . . . Follow-up Attacks . | . . . . . . . . . . . . . . . . . . . . . . . . . . . Damage Inflicted 44843 | 88 525 671 888 172 . 869 618 297 361 . . 2012 681 . 555 8387 945 1965 3609 1811 500 1394 1392 7230 3843 6030 Guns 33026 | 88 451 211 523 172 . 869 618 98 156 . . 1763 487 . 524 54 625 1856 3432 1719 500 679 1391 7169 3759 5882 Cannons 2198 | . . . . . . . . 164 205 . . 249 . . 31 1306 . . . 92 . . . 53 . 98 Explosions 8354 | . 74 460 365 . . . . . . . . . . . . 6470 277 . . . . 708 . . . . Melee 424 | . . . . . . . . . . . . . 194 . . . . 109 121 . . . . . . . Ramming 241 | . . . . . . . . 35 . . . . . . . . . . 56 . . 7 1 8 84 50 Kinetic 33887 | 88 451 211 523 172 . 869 618 262 361 . . 2012 487 . 524 54 625 1856 3432 1811 500 679 1391 7222 3759 5980 Thermal 31 | . . . . . . . . . . . . . . . 31 . . . . . . . . . . . Explosive 7646 | . 74 460 365 . . . . . . . . . . . . 6470 277 . . . . . . . . . Electromagnetic 708 | . . . . . . . . . . . . . . . . . . . . . . 708 . . . . Impact 424 | . . . . . . . . . . . . . 194 . . . . 109 121 . . . . . . . Slashing 600 | . . . . . . . . . . . . . . . . 557 43 . . . . . . . . . Piercing . | . . . . . . . . . . . . . . . . . . . . . . . . . . . Entropic 1306 | . . . . . . . . . . . . . . . . 1306 . . . . . . . . . . Highest Corruption 9 | . . . . . . . . 4 4 4 . 6 . . . . . . . 7 7 9 3 2 2 3 Average Corruption 3 | . . . . . . . . 3 4 4 . 5 . . . . . . . 7 7 7 2 2 1 2 Corruption Purged . | . . . . . . . . . . . . . . . . . . . . . . . . . . . Corruption Blocked 49 | . . . . . . . . . . . . . . . . . . . . . . . . 19 . 30 Effects 71 | . . . . . . . . 3 9 1 . 11 . . . . . . . 10 2 9 . 8 4 14 Message Errors 14 | . . . . . . . . 1 5 . . 1 . . . . . . . 1 1 1 . 2 1 1 Matter Fused 23 | . . . . . . . . 2 3 . . 5 . . . . . . . 4 . 2 . 4 1 2 Heat Flow Errors 9 | . . . . . . . . . 1 . . 3 . . . . . . . . . . . . 1 4 Energy Discharges 5 | . . . . . . . . . . . . 1 . . . . . . . 1 . . . 1 . 2 Parts Rejected 1 | . . . . . . . . . . . . . . . . . . . . . . . . . . 1 Data Loss (minor) 6 | . . . . . . . . . . 1 . . . . . . . . . 1 . 2 . 1 1 . Data Loss (major) 2 | . . . . . . . . . . . . . . . . . . . . . 1 1 . . . . Misfires 4 | . . . . . . . . . . . . . . . . . . . . . . 1 . . . 3 Alerts 1 | . . . . . . . . . . . . . . . . . . . . . . 1 . . . . Weapon Failures 6 | . . . . . . . . . . . . 1 . . . . . . . 3 . 1 . . . 1 Overload Shots . | . . . . . . . . . . . . . . . . . . . . . . . . . . . Overflow Damage 731 | . . . . . . . . . 19 . . 7 71 . . 383 11 79 81 . . 80 . . . . Projectiles 97 | . . . . . . . . . 19 . . 7 . . . 71 . . . . . . . . . . Explosions 403 | . . . . . . . . . . . . . . . . 312 11 . . . . 80 . . . . Melee 231 | . . . . . . . . . . . . . 71 . . . . 79 81 . . . . . . . Knockbacks 4 | . . . . . . . . 2 . . . 1 . . . . . . 1 . . . . . . . Impact 3 | . . . . . . . . 2 . . . . . . . . . . 1 . . . . . . . Kinetic 1 | . . . . . . . . . . . . 1 . . . . . . . . . . . . . . Secondary . | . . . . . . . . . . . . . . . . . . . . . . . . . . . Self-Inflicted Damage 360 | . 33 65 65 . . . . . . . . . . . . . . . . . . 197 . . . . Shots 8 | . 1 3 2 . . . . . . . . . . . . . . . . . . 2 . . . . Rammed 23 | . . . . . . . . 9 . . . . . . . . . . 3 . . 1 1 1 3 5 Targets Rammed 24 | . . . . . . . . 10 . . . . . . . . . . 3 . . 1 1 1 3 5 Kicked . | . . . . . . . . . . . . . . . . . . . . . . . . . . . Crushed 1 | . . . . . . . . 1 . . . . . . . . . . . . . . . . . . Highest Temperature 477 | . 80 20 24 2 . 24 49 60 136 . . 229 105 38 180 . 65 . 71 102 80 477 309 369 153 314 Average Temperature 63 | . 23 8 8 1 . 5 23 21 38 . . 55 54 23 71 . 31 . 36 36 33 145 146 102 34 72 Received Heat Transfer 1240 | . 147 20 93 27 . 117 99 . 54 . . 57 21 . 9 28 41 39 29 4 12 . 159 115 135 34 Effects 6 | . . . . . . . . . . . . . . . . . . . . . . 3 . . . 3 Shutdowns 1 | . . . . . . . . . . . . . . . . . . . . . . 1 . . . . Energy Bleed 1 | . . . . . . . . . . . . . . . . . . . . . . 1 . . . . Interference 3 | . . . . . . . . . . . . . . . . . . . . . . . . . . 3 Short Circuit 1 | . . . . . . . . . . . . . . . . . . . . . . 1 . . . . Siege Activations 27 | . . . . . . . . . . . . . . . . . . . 3 4 1 . 2 6 6 5 Total Turns 409 | . . . . . . . . . . . . . . . . . . . 22 18 7 . 22 157 112 71 Longest Duration 60 | . . . . . . . . . . . . . . . . . . . 12 7 7 . 11 60 38 26 Robots Corrupted . | . . . . . . . . . . . . . . . . . . . . . . . . . . . Combat Hostiles . | . . . . . . . . . . . . . . . . . . . . . . . . . . . Parts Fried 13 | . . . . . . . . . . . . . 2 . . . . 1 2 1 . 7 . . . . Impact Corruptions 5 | . . . . . . . . . . . . . 1 . . . . 1 3 . . . . . . . Robots Melted . | . . . . . . . . . . . . . . . . . . . . . . . . . . . Combat Hostiles . | . . . . . . . . . . . . . . . . . . . . . . . . . . . Parts Melted . | . . . . . . . . . . . . . . . . . . . . . . . . . . . Heat Transferred 50 | . . . . . . . . . . . . . . . 50 . . . . . . . . . . . Parts Sabotaged . | . . . . . . . . . . . . . . . . . . . . . . . . . . . Parts Stolen . | . . . . . . . . . . . . . . . . . . . . . . . . . . . Parts Stripped . | . . . . . . . . . . . . . . . . . . . . . . . . . . . Power Chain Reactions . | . . . . . . . . . . . . . . . . . . . . . . . . . . . Missiles Intercepted 3 | . . . . . . . . . . . . . . . . . . . . . . . . . . 3 Alert | -11 -10 -10 -9 -9 -9 -8 -8 -7 -7 -7 -6 -6 -5 -5 -5 -5 -4 -4 -4 -4 -4 -4 -3 -2 -1 -1 ------- Run | Scr Mat Min Mat Min Exi Min Mat Fac Low Low Fac DSF Fac Upp Upp War Pro Fac Ext Cet Arc Hub Res Res Acc Com Peak Influence 1141 | 20 205 155 575 170 . 238 144 78 . . 34 234 360 . . . . 276 581 767 450 890 648 1077 1141 1090 Initial 636 | . 13 72 60 130 . . 45 32 . . 32 27 122 . . . . 135 37 240 306 157 467 372 587 636 Average 411 | 7 99 130 312 160 . 128 66 35 . . 32 147 212 . . . . 224 213 554 416 287 511 742 901 932 Maximum Alert Level 4 | . 1 . 2 . . 1 . . . . . 1 1 . . . . 1 2 3 2 3 2 3 4 3 Low Security (%) 43 | 100 97 100 36 100 . 94 100 100 . . 100 73 78 . . . . 31 47 . . 15 . . . . Level 1 15 | . 2 . 30 . . 5 . . . . . 26 21 . . . . 68 33 33 29 81 . 13 . . Level 2 13 | . . . 33 . . . . . . . . . . . . . . . 19 28 70 . 100 22 17 9 Level 3 24 | . . . . . . . . . . . . . . . . . . . . 37 . 2 . 64 58 90 Level 4 2 | . . . . . . . . . . . . . . . . . . . . . . . . . 23 . Level 5 . | . . . . . . . . . . . . . . . . . . . . . . . . . . . High Security . | . . . . . . . . . . . . . . . . . . . . . . . . . . . Max Security . | . . . . . . . . . . . . . . . . . . . . . . . . . . . Sterilizations 1 | . . . . . . . . . . . . 1 . . . . . . . . . . . . . . Squads Dispatched 28 | . 2 . 1 . . . 1 1 . . 1 2 1 . . . . . . . . 3 3 1 6 6 Investigation 4 | . 2 . 1 . . . 1 . . . . . . . . . . . . . . . . . . . Extermination 7 | . . . . . . . . 1 . . . . . . . . . . . . . 1 . . 2 3 Reinforcement 12 | . . . . . . . . . . . 1 2 . . . . . . . . . 1 3 1 3 1 Assault 5 | . . . . . . . . . . . . . 1 . . . . . . . . 1 . . 1 2 Garrison . | . . . . . . . . . . . . . . . . . . . . . . . . . . . Intercept . | . . . . . . . . . . . . . . . . . . . . . . . . . . . Searches Triggered . | . . . . . . . . . . . . . . . . . . . . . . . . . . . Construction Impeded 1 | . . . . . . . . . . . . . . . . . . . . . . . 1 . . . Haulers Reinforced . | . . . . . . . . . . . . . . . . . . . . . . . . . . . Active Scanning Responses . | . . . . . . . . . . . . . . . . . . . . . . . . . . . Cargo Convoy Interrupts . | . . . . . . . . . . . . . . . . . . . . . . . . . . . Stealth | -11 -10 -10 -9 -9 -9 -8 -8 -7 -7 -7 -6 -6 -5 -5 -5 -5 -4 -4 -4 -4 -4 -4 -3 -2 -1 -1 --------- Run | Scr Mat Min Mat Min Exi Min Mat Fac Low Low Fac DSF Fac Upp Upp War Pro Fac Ext Cet Arc Hub Res Res Acc Com Distress Signals 35 | . 1 . 2 . . . . . . . . . . . . 1 . 2 2 2 . 1 . 10 1 13 Communications Jammed 13 | . . . . . . . . . . . . . . . . . . . . . . . . . 9 4 Distress Signals 11 | . . . . . . . . . . . . . . . . . . . . . . . . . 7 4 Times Spotted 348 | . 16 17 20 3 . 15 13 7 2 . . 9 8 . 4 49 9 5 21 17 5 6 11 42 36 33 Peak Tracking Total 16 | . 4 16 6 3 . 4 3 3 1 . . 4 5 . 3 13 8 4 5 5 1 7 4 7 10 4 Tactical Retreats 8 | . 1 . 1 . . . . . . . . . . . . 1 1 . . . . 2 . . 2 . Traps | -11 -10 -10 -9 -9 -9 -8 -8 -7 -7 -7 -6 -6 -5 -5 -5 -5 -4 -4 -4 -4 -4 -4 -3 -2 -1 -1 ------- Run | Scr Mat Min Mat Min Exi Min Mat Fac Low Low Fac DSF Fac Upp Upp War Pro Fac Ext Cet Arc Hub Res Res Acc Com Traps Triggered 5 | . 2 . . . . . . 2 . . . 1 . . . . . . . . . . . . . . Indirectly . | . . . . . . . . . . . . . . . . . . . . . . . . . . . Trap Hack Attempts . | . . . . . . . . . . . . . . . . . . . . . . . . . . . Triggered . | . . . . . . . . . . . . . . . . . . . . . . . . . . . Disarmed . | . . . . . . . . . . . . . . . . . . . . . . . . . . . Reprogrammed . | . . . . . . . . . . . . . . . . . . . . . . . . . . . Reused . | . . . . . . . . . . . . . . . . . . . . . . . . . . . Traps Extracted . | . . . . . . . . . . . . . . . . . . . . . . . . . . . Installed . | . . . . . . . . . . . . . . . . . . . . . . . . . . . Triggered 11 | . . . . . . . . . 1 . . . . . . 9 . . 1 . . . . . . . Machines | -11 -10 -10 -9 -9 -9 -8 -8 -7 -7 -7 -6 -6 -5 -5 -5 -5 -4 -4 -4 -4 -4 -4 -3 -2 -1 -1 ---------- Run | Scr Mat Min Mat Min Exi Min Mat Fac Low Low Fac DSF Fac Upp Upp War Pro Fac Ext Cet Arc Hub Res Res Acc Com Machines Disabled 29 | . 1 . . . . . . . . . . . 2 . . . . . 3 2 2 11 . 2 2 4 Max in Single Turn 11 | . 1 . . . . . . . . . . . 1 . . . . . 1 . 1 11 . 1 1 2 Garrison Access 5 | . . . . . . . 1 2 . . . . 1 . . . . . . . . 1 . . . . Phase Generator 1 | . . . . . . . . . . . . . . . . . . . . . . . . . . 1 Network Hub 2 | . . . . . . . . . . . . . . . . . . . . . . 2 . . . . Machines Sabotaged . | . . . . . . . . . . . . . . . . . . . . . . . . . . . Garrisons Compromised . | . . . . . . . . . . . . . . . . . . . . . . . . . . . Overloaded Fab Kills . | . . . . . . . . . . . . . . . . . . . . . . . . . . . Hacking | -11 -10 -10 -9 -9 -9 -8 -8 -7 -7 -7 -6 -6 -5 -5 -5 -5 -4 -4 -4 -4 -4 -4 -3 -2 -1 -1 --------- Run | Scr Mat Min Mat Min Exi Min Mat Fac Low Low Fac DSF Fac Upp Upp War Pro Fac Ext Cet Arc Hub Res Res Acc Com Machines Accessed 59 | . 8 . 5 . 1 . 7 4 . . 1 . 6 . 1 3 . . 5 1 . 5 . 1 6 5 Terminals 42 | . 7 . 4 . . . 4 2 . . 1 . 3 . . . . . 5 1 . 4 . . 6 5 Fabricators 1 | . . . . . . . . . . . . . 1 . . . . . . . . . . . . . Repair Stations 1 | . . . . . . . . . . . . . . . . . . . . . . . . 1 . . Recycling Units 4 | . 1 . 1 . . . 1 . . . . . 1 . . . . . . . . . . . . . Scanalyzers 1 | . . . . . . . 1 . . . . . . . . . . . . . . . . . . . Garrison Access 5 | . . . . . . . 1 2 . . . . 1 . . . . . . . . 1 . . . . Total Hacks 157 | . 26 . 20 . 1 . 19 9 . . 2 . 13 . 1 11 . . 14 1 . 9 . 2 12 17 Successful 86 | . 12 . 13 . 1 . 14 3 . . 1 . 7 . 1 11 . . 7 . . 2 . . 7 7 Failed 70 | . 14 . 6 . . . 5 6 . . 1 . 6 . . . . . 7 1 . 7 . 2 5 10 Catastrophic 10 | . . . 1 . . . 1 1 . . . . 2 . . . . . . 1 . 1 . . 2 1 Database Lockouts 1 | . . . 1 . . . . . . . . . . . . . . . . . . . . . . . Manual 83 | . 25 . 16 . 1 . 10 3 . . . . 8 . . . . . 5 1 . 4 . . 3 7 Terminals 123 | . 23 . 19 . . . 15 4 . . 2 . 8 . . . . . 14 1 . 8 . . 12 17 Fabricators 3 | . . . . . . . . . . . . . 3 . . . . . . . . . . . . . Repair Stations 2 | . . . . . . . . . . . . . . . . . . . . . . . . 2 . . Recycling Units 6 | . 3 . 1 . . . 1 . . . . . 1 . . . . . . . . . . . . . Scanalyzers 2 | . . . . . . . 2 . . . . . . . . . . . . . . . . . . . Garrison Access 8 | . . . . . . . 1 5 . . . . 1 . . . . . . . . 1 . . . . Terminal Hacks 50 | . 6 . 8 . 1 . 7 . . . 1 . 2 . 1 11 . . 3 . . 2 . . 5 3 Part Schematic 1 | . . . 1 . . . . . . . . . . . . . . . . . . . . . . . Robot Analysis 8 | . 5 . 1 . . . 2 . . . . . . . . . . . . . . . . . . . Prototype ID Bank 12 | . . . . . . . 2 . . . . . . . . 10 . . . . . . . . . . Open Door 9 | . . . . . . . . . . . . . . . 1 1 . . 3 . . . . . 3 1 Open DSF 1 | . . . . . . . . . . . 1 . . . . . . . . . . . . . . . Branch Access Points 1 | . . . . . . . . . . . . . 1 . . . . . . . . . . . . . Machine Index 1 | . . . . . . . . . . . . . . . . . . . . . . . . . . 1 Terminal Index 3 | . . . 1 . . . 1 . . . . . . . . . . . . . . . . . 1 . Unreport Threat 5 | . . . 2 . . . 1 . . . . . . . . . . . . . . 1 . . 1 . Locate Traps 3 | . 1 . 1 . . . . . . . . . . . . . . . . . . 1 . . . . Registered Components 1 | . . . . . . . . . . . . . 1 . . . . . . . . . . . . . Zone Layout 3 | . . . 2 . . . 1 . . . . . . . . . . . . . . . . . . . EX-Prototype ID Bank 1 | . . . . . 1 . . . . . . . . . . . . . . . . . . . . . Disengage Seal 1 | . . . . . . . . . . . . . . . . . . . . . . . . . . 1 Fabricator Hacks 1 | . . . . . . . . . . . . . 1 . . . . . . . . . . . . . Network Status 1 | . . . . . . . . . . . . . 1 . . . . . . . . . . . . . Repair Station Hacks . | . . . . . . . . . . . . . . . . . . . . . . . . . . . Recycling Unit Hacks . | . . . . . . . . . . . . . . . . . . . . . . . . . . . Scanalyzer 2 | . . . . . . . 2 . . . . . . . . . . . . . . . . . . . Insert Component 1 | . . . . . . . 1 . . . . . . . . . . . . . . . . . . . Analyze 1 | . . . . . . . 1 . . . . . . . . . . . . . . . . . . . Garrison Access Hacks 3 | . . . . . . . 1 2 . . . . . . . . . . . . . . . . . . Seal Access 3 | . . . . . . . 1 2 . . . . . . . . . . . . . . . . . . Unauthorized Hacks 30 | . 6 . 5 . . . 4 1 . . . . 4 . . . . . 4 . . . . . 2 4 Terminals 25 | . 5 . 4 . . . 3 1 . . . . 2 . . . . . 4 . . . . . 2 4 Track 6 | . 2 . 1 . . . . . . . . . . . . . . . 1 . . . . . . 2 Assimilate 1 | . . . . . . . . . . . . . 1 . . . . . . . . . . . . . Botnet 13 | . 2 . 2 . . . 2 1 . . . . 1 . . . . . 2 . . . . . 1 2 Operators 5 | . 1 . 1 . . . 1 . . . . . . . . . . . 1 . . . . . 1 . Fabricators 2 | . . . . . . . . . . . . . 2 . . . . . . . . . . . . . Fabnet 1 | . . . . . . . . . . . . . 1 . . . . . . . . . . . . . Haulers 1 | . . . . . . . . . . . . . 1 . . . . . . . . . . . . . Repair Stations . | . . . . . . . . . . . . . . . . . . . . . . . . . . . Recycling Units 3 | . 1 . 1 . . . 1 . . . . . . . . . . . . . . . . . . . Tunnel 3 | . 1 . 1 . . . 1 . . . . . . . . . . . . . . . . . . . Scanalyzers . | . . . . . . . . . . . . . . . . . . . . . . . . . . . Garrison Access . | . . . . . . . . . . . . . . . . . . . . . . . . . . . Data Cores Recovered 1 | . . . . . . . . . . . . . . . . . . . 1 . . . . . . . Used 1 | . . . . . . . . . . . . . . . . . . . 1 . . . . . . . Hacking Detections 40 | . 8 . 4 . . . 4 3 . . . . 5 . . . . . 2 1 . 5 . 1 3 4 Full Trace Events 2 | . 2 . . . . . . . . . . . . . . . . . . . . . . . . . Feedback Events . | . . . . . . . . . . . . . . . . . . . . . . . . . . . Feedback Blocked . | . . . . . . . . . . . . . . . . . . . . . . . . . . . Robot Schematics Acquired . | . . . . . . . . . . . . . . . . . . . . . . . . . . . Robots Built . | . . . . . . . . . . . . . . . . . . . . . . . . . . . Authchips . | . . . . . . . . . . . . . . . . . . . . . . . . . . . Time . | . . . . . . . . . . . . . . . . . . . . . . . . . . . Total Robot Build Rating . | . . . . . . . . . . . . . . . . . . . . . . . . . . . Part Schematics Acquired 2 | . . . 1 . . . 1 . . . . . . . . . . . . . . . . . . . Parts Built . | . . . . . . . . . . . . . . . . . . . . . . . . . . . Authchips . | . . . . . . . . . . . . . . . . . . . . . . . . . . . Time . | . . . . . . . . . . . . . . . . . . . . . . . . . . . Total Part Build Rating . | . . . . . . . . . . . . . . . . . . . . . . . . . . . Parts Repaired . | . . . . . . . . . . . . . . . . . . . . . . . . . . . Time . | . . . . . . . . . . . . . . . . . . . . . . . . . . . Parts Recycled . | . . . . . . . . . . . . . . . . . . . . . . . . . . . Recycled Matter . | . . . . . . . . . . . . . . . . . . . . . . . . . . . Retrieved Matter . | . . . . . . . . . . . . . . . . . . . . . . . . . . . Retrieved Components . | . . . . . . . . . . . . . . . . . . . . . . . . . . . Parts Scanalyzed 1 | . . . . . . . 1 . . . . . . . . . . . . . . . . . . . Part Schematics Acquired 1 | . . . . . . . 1 . . . . . . . . . . . . . . . . . . . Parts Damaged . | . . . . . . . . . . . . . . . . . . . . . . . . . . . Bothacking | -11 -10 -10 -9 -9 -9 -8 -8 -7 -7 -7 -6 -6 -5 -5 -5 -5 -4 -4 -4 -4 -4 -4 -3 -2 -1 -1 ------------ Run | Scr Mat Min Mat Min Exi Min Mat Fac Low Low Fac DSF Fac Upp Upp War Pro Fac Ext Cet Arc Hub Res Res Acc Com Used RIF Installer . | . . . . . . . . . . . . . . . . . . . . . . . . . . . Robots Hacked 3 | . . . . . . . . . . . . . . . . . . . 1 . . 1 . . . 1 Non-combat . | . . . . . . . . . . . . . . . . . . . . . . . . . . . Combat 2 | . . . . . . . . . . . . . . . . . . . 1 . . 1 . . . . Robot Hacks Applied . | . . . . . . . . . . . . . . . . . . . . . . . . . . . Manual 1 | . . . . . . . . . . . . . . . . . . . . . . . . . . 1 Relay Couplers Released 7 | . . . . . . . . 2 . . . . 2 . . . . . . . . 3 . . . . Machine Destruction 7 | . . . . . . . . 2 . . . . 2 . . . . . . . . 3 . . . . Fabnet Peak Effective % 3 | . . . . . . . . . . . . . . . . . 3 3 3 3 3 3 1 . . . Autooverrided 2 | . . . . . . . . . . . . . . . . . . . 1 . . 1 . . . . Robots Rewired . | . . . . . . . . . . . . . . . . . . . . . . . . . . . Allies Hacked 1 | . . . . . . . . . . . . . . . . . . . . . . 1 . . . . Hacks Repelled . | . . . . . . . . . . . . . . . . . . . . . . . . . . . Allies | -11 -10 -10 -9 -9 -9 -8 -8 -7 -7 -7 -6 -6 -5 -5 -5 -5 -4 -4 -4 -4 -4 -4 -3 -2 -1 -1 -------- Run | Scr Mat Min Mat Min Exi Min Mat Fac Low Low Fac DSF Fac Upp Upp War Pro Fac Ext Cet Arc Hub Res Res Acc Com Total Allies 10 | . . . . . . . . . . . . . 1 . . . . . 5 2 . 2 . . . . Largest Group 4 | . . . . . . . . . . . . . 1 1 . . . . 4 4 3 2 1 . . . Highest-Rated Group 384 | . . . . . . . . . . . . . 10 10 . . . . 285 384 273 150 96 . . . Highest-Rated Ally 159 | . . . . . . . . . . . . . 10 10 . . . . 159 159 144 96 96 . . . Total Orders 4 | . . . . . . . . . . . . . 2 . . . . . . . . 2 . . . . STAY 2 | . . . . . . . . . . . . . 1 . . . . . . . . 1 . . . . FOLLOW 2 | . . . . . . . . . . . . . 1 . . . . . . . . 1 . . . . Ally Attacks 155 | . . . . . . . . . . . . . . . . . . . 73 61 9 9 3 . . . Total Damage 4829 | . . . . . . . . . . . . . . . . . . . 2255 1973 267 289 45 . . . Kills 26 | . . . . . . . . . . . . . . . . . . . 15 7 1 2 1 . . . Allies Corrupted . | . . . . . . . . . . . . . . . . . . . . . . . . . . . Allies Melted 1 | . . . . . . . . . . . . . . . . . . . . . . . . 1 . . Intel | -11 -10 -10 -9 -9 -9 -8 -8 -7 -7 -7 -6 -6 -5 -5 -5 -5 -4 -4 -4 -4 -4 -4 -3 -2 -1 -1 ------- Run | Scr Mat Min Mat Min Exi Min Mat Fac Low Low Fac DSF Fac Upp Upp War Pro Fac Ext Cet Arc Hub Res Res Acc Com Robot Analysis Total 8 | . 5 . 1 . . . 2 . . . . . . . . . . . . . . . . . . . Derelict Logs Recovered 7 | . . . . . . . . . 2 2 . . . . 1 . 2 . . . . . . . . . Drone Launches . | . . . . . . . . . . . . . . . . . . . . . . . . . . . Drone Recoveries . | . . . . . . . . . . . . . . . . . . . . . . . . . . . Exploration | -11 -10 -10 -9 -9 -9 -8 -8 -7 -7 -7 -6 -6 -5 -5 -5 -5 -4 -4 -4 -4 -4 -4 -3 -2 -1 -1 ------------- Run | Scr Mat Min Mat Min Exi Min Mat Fac Low Low Fac DSF Fac Upp Upp War Pro Fac Ext Cet Arc Hub Res Res Acc Com Turns Passed 12525 | 66 592 70 319 200 258 540 574 532 350 103 184 452 466 425 366 1220 390 414 856 381 99 333 372 847 864 1252 Spaces Moved 7445 | 36 508 33 177 177 253 388 434 357 248 84 143 169 332 333 223 821 217 181 451 166 46 150 187 347 354 630 Core 18 | 18 . . . . . . . . . . . . . . . . . . . . . . . . . . Treads 2521 | . . 1 . . . . . . . . . 5 . . . 3 . 181 451 166 46 150 187 347 354 630 Legs . | . . . . . . . . . . . . . . . . . . . . . . . . . . . Wheels 4906 | 18 508 32 177 177 253 388 434 357 248 84 143 164 332 333 223 818 217 . . . . . . . . . Hover . | . . . . . . . . . . . . . . . . . . . . . . . . . . . Flight . | . . . . . . . . . . . . . . . . . . . . . . . . . . . Fastest Speed 50 | 50 80 95 86 86 101 101 101 101 120 120 120 120 123 123 123 123 145 162 162 160 163 163 163 155 155 155 Average Speed 130 | 68 87 96 96 94 101 101 104 118 120 120 120 167 123 123 137 131 159 162 162 161 163 163 163 156 155 155 Slowest Speed 320 | 90 95 160 101 105 101 120 120 145 120 120 120 320 123 123 138 243 160 162 162 163 163 163 163 163 155 155 Overloaded Moves . | . . . . . . . . . . . . . . . . . . . . . . . . . . . Propulsion Burnouts . | . . . . . . . . . . . . . . . . . . . . . . . . . . . Robots Hopped . | . . . . . . . . . . . . . . . . . . . . . . . . . . . Cave-ins Triggered . | . . . . . . . . . . . . . . . . . . . . . . . . . . . Exploration Rate (%) 41 | 3 81 13 26 41 64 70 46 14 60 16 7 90 14 57 43 90 52 7 62 84 81 35 8 17 12 30 Regions Visited 26 Branch Regions 15 Pre-discovered Areas 5 | . 1 . 1 . . . 1 . 1 . . . . . . . 1 . . . . . . . . . Known Exits Taken 5 | . . . . . . . . . . . 1 . 1 . 1 . . . . . . . 1 1 . . Unknown Exits Taken 20 | 1 1 1 1 1 1 1 1 1 1 1 . . . 1 . 1 1 1 1 1 1 1 . . 1 . Scrap Searched 10 | . . . . 1 . 1 . . 1 2 . . . 2 2 . 1 . . . . . . . . . Spaces Dug 415 | . 9 . 1 . . 2 2 7 3 . 2 2 4 3 12 . . 6 . 1 . 331 2 8 14 6 Terrain Destroyed 789 | . 14 29 26 . . 3 2 8 7 . 2 2 6 4 16 124 42 11 4 4 1 336 8 16 43 81 Melee 26 | . . . . . . . 2 7 . . 2 2 4 2 . . . 6 . 1 . . . . . . Projectile 150 | . 9 . 1 . . 3 . 1 7 . . . 2 2 16 4 3 5 4 3 1 26 7 15 24 17 AOE 611 | . 5 29 25 . . . . . . . . . . . . 120 39 . . . . 310 . . 19 64 Terrain Rammed . | . . . . . . . . . . . . . . . . . . . . . . . . . . . Walls Destroyed . | . . . . . . . . . . . . . . . . . . . . . . . . . . . Machines Disabled . | . . . . . . . . . . . . . . . . . . . . . . . . . . . Actions | -11 -10 -10 -9 -9 -9 -8 -8 -7 -7 -7 -6 -6 -5 -5 -5 -5 -4 -4 -4 -4 -4 -4 -3 -2 -1 -1 --------- Run | Scr Mat Min Mat Min Exi Min Mat Fac Low Low Fac DSF Fac Upp Upp War Pro Fac Ext Cet Arc Hub Res Res Acc Com Total 9140 | 59 586 52 269 197 255 459 510 417 270 85 155 273 375 341 261 919 246 267 544 249 60 198 225 528 551 789 Wait 207 | . 3 . 1 . . 3 1 4 . . . 2 1 . . 21 . 20 12 10 2 . 6 18 70 33 Move 7419 | 35 507 32 176 176 252 387 433 356 247 83 142 168 331 332 222 820 216 180 450 165 45 149 186 346 353 630 Hop . | . . . . . . . . . . . . . . . . . . . . . . . . . . . Pick Up 163 | 8 11 1 12 1 2 3 14 4 3 1 5 18 4 1 4 8 4 10 . 4 1 3 3 12 16 10 Fast Attach 85 | 5 2 . 1 1 . . 6 8 . . . 6 3 . . 8 . 5 9 10 . . 2 10 4 5 Attach 95 | 2 . 5 3 . . 2 4 5 2 . 3 10 2 . 1 10 3 4 . 1 . 2 3 11 12 10 Detach 33 | . . . 1 . . . 2 5 . . . 3 . . 1 2 . 2 3 . . 1 1 6 1 5 Swap 333 | 2 20 4 26 8 . 19 12 8 3 1 . 15 11 3 10 14 10 8 18 17 4 13 7 38 34 28 Drop 167 | . 9 . 13 4 1 4 13 4 . . 3 14 7 1 3 16 4 10 9 12 1 4 . 17 7 11 Fire 583 | 7 34 10 36 7 . 41 22 6 15 . . 35 10 2 20 20 9 21 39 29 7 25 16 69 51 52 Melee 31 | . . . . . . . 3 7 . . 2 2 6 2 . . . 7 1 1 . . . . . . Ram . | . . . . . . . . . . . . . . . . . . . . . . . . . . . Kick . | . . . . . . . . . . . . . . . . . . . . . . . . . . . Crush 24 | . . . . . . . . 10 . . . . . . . . . . 3 . . 1 1 1 3 5 Escape Stasis . | . . . . . . . . . . . . . . . . . . . . . . . . . . . Rewire . | . . . . . . . . . . . . . . . . . . . . . . . . . . . Trap . | . . . . . . . . . . . . . . . . . . . . . . . . . . . Miscellaneous . | . . . . . . . . . . . . . . . . . . . . . . . . . . . Route ------- -11/Scrapyard -10/Materials (discovered 4 exits: *Mat x2 / [*Min x2]) -10/Mines -9/Materials -9/Mines (discovered 2 exits: *Mat / *Exi) -9/Exiles (discovered 2 exits: [*Min x2]) -8/Mines (discovered 2 exits: *Mat x2) -8/Materials -7/Factory (discovered 2 exits: Fac / [*Low]) -7/Lower Caves -7/Lower Caves -6/Factory (discovered 2 exits: Low / DSF) -6/DSF -5/Factory (discovered 3 exits: [Fac] / *Upp x2) -5/Upper Caves -5/Upper Caves -5/Warlord -4/Proximity Caves -4/Factory (discovered 2 exits: [*Res] / *Ext) -4/Extension (discovered 2 exits: [*Res] / *Cet) -4/Cetus (discovered 2 exits: [*Res] / [*Arc]) -4/Archives (discovered 2 exits: *Hub x2) -4/Hub_04(d) -3/Research -2/Research (discovered 2 exits: *Acc / [*Tes]) -1/Access -1/Command Free Derelict Territories History --------- Turn | Location | Event 9 | -11/Scrapyard | Discovered new exit (range 15) 67 | -11/Scrapyard | Entered Materials 148 | -10/Materials | Discovered new exit (range 6) 264 | -10/Materials | Discovered new exit (range 11) 300 | -10/Materials | Discovered new exit (range 6) 332 | -10/Materials | Build established: Mutant 651 | -10/Materials | Discovered new exit (range 9) 659 | -10/Materials | Entered Mines 660 | -10/Mines | Assembled infested the area 665 | -10/Mines | Assisted by a Guerilla fighting off Assembled 674 | -10/Mines | Core integrity fell below 50% 710 | -10/Mines | Destroyed 8 combat bots 717 | -10/Mines | Lost 5 parts (3n2w) 717 | -10/Mines | Discovered new exit (range 14) 729 | -10/Mines | Entered Materials 729 | -9/Materials | Evolved 2 slots: Propulsion x1, Utility x1 932 | -9/Materials | Destroyed 9 combat bots 1008 | -9/Materials | Discovered new exit (range 7) 1008 | -9/Materials | Central database locked down 1048 | -9/Materials | Entered Mines 1104 | -9/Mines | Build established: Scavenger-Mutant 1106 | -9/Mines | Deemed a non-threat by the Exiles lab entrance 1106 | -9/Mines | Discovered new exit (range 5) 1204 | -9/Mines | Discovered new exit (range 8) 1248 | -9/Mines | Entered Exiles 1262 | -9/Exiles | Discovered new exit (range 15) 1274 | -9/Exiles | Met 8R-AWN 1288 | -9/Exiles | Met EX-HEX 1349 | -9/Exiles | Met EX-BIN 1361 | -9/Exiles | Aligned with FarCom system 1362 | -9/Exiles | Given EX-Vault access code 1385 | -9/Exiles | Opened EX-Vault 1390 | -9/Exiles | Found XL Autogun Array 1411 | -9/Exiles | Warned to stay clear of 0b10 Research branches 1441 | -9/Exiles | Met EX-DEC 1497 | -9/Exiles | Discovered new exit (range 10) 1506 | -9/Exiles | Left Exiles lab with XL Autogun Array 1506 | -9/Exiles | Entered Mines 2033 | -8/Mines | Discovered new exit (range 12) 2038 | -8/Mines | Discovered new exit (range 9) 2046 | -8/Mines | Entered Materials 2046 | -8/Materials | Evolved 2 slots: Utility x1, Weapon x1 2165 | -8/Materials | Lost 3 parts (2u1w) 2259 | -8/Materials | Build established: Scavenger-Skirmisher 2580 | -8/Materials | Discovered new exit (range 4) 2620 | -8/Materials | Entered Factory 2620 | -7/Factory | Evolved 2 slots: Propulsion x1, Weapon x1 2746 | -7/Factory | Discovered new exit (range 11) 2993 | -7/Factory | Discovered new exit (range 15) 3152 | -7/Factory | Entered Lower Caves 3242 | -7/Lower Caves | Learned Factory stockpile data 3416 | -7/Lower Caves | Spotted B-75 Beast 3445 | -7/Lower Caves | Discovered new exit (range 13) 3447 | -7/Lower Caves | Attracted the attention of an 0b10 checkpoint 3495 | -7/Lower Caves | Learned location of Zion (-6) 3502 | -7/Lower Caves | Entered another Lower Caves area 3518 | -7/Lower Caves | Learned Factory emergency access door positions 3519 | -7/Lower Caves | Learned 4 Factory zone layouts 3572 | -7/Lower Caves | Encountered a Warlord checkpoint 3590 | -7/Lower Caves | Discovered new exit (range 7) 3605 | -7/Lower Caves | Entered Factory 3605 | -6/Factory | Evolved 2 slots: Utility x1, Weapon x1 3606 | -6/Factory | Identified exit to Lower Caves 3785 | -6/Factory | Spotted B-75 Beast 3789 | -6/Factory | Identified exit to DSF 3789 | -6/Factory | Entered DSF 3823 | -6/DSF | Additional patrols routed to DSF 3952 | -6/DSF | Lost 4 parts (2n2w) 4150 | -6/DSF | Discovered new exit (range 20) 4155 | -6/DSF | Sterilization system engaged 4175 | -6/DSF | Ambient heat levels rising (+10) 4190 | -6/DSF | Ambient heat levels rising (+10) 4205 | -6/DSF | Ambient heat levels rising (+10) 4220 | -6/DSF | Ambient heat levels rising (+10) 4235 | -6/DSF | Ambient heat levels rising (+10) 4241 | -6/DSF | Entered Factory 4241 | -5/Factory | Evolved 2 slots: Power x1, Utility x1 4284 | -5/Factory | Identified exit to Upper Caves 4588 | -5/Factory | Build established: Assassin 4592 | -5/Factory | Discovered new exit (range 9) 4707 | -5/Factory | Entered Upper Caves 4707 | -5/Upper Caves | Accompanied by 1 ally 5115 | -5/Upper Caves | Discovered new exit (range 15) 5132 | -5/Upper Caves | Entered another Upper Caves area 5132 | -5/Upper Caves | Accompanied by 1 ally 5134 | -5/Upper Caves | Attracted the attention of an 0b10 checkpoint 5371 | -5/Upper Caves | Spotted B-75 Beast 5440 | -5/Upper Caves | Learned Factory machine intel 5470 | -5/Upper Caves | Discovered new exit (range 7) 5490 | -5/Upper Caves | Identified exit to Warlord 5498 | -5/Upper Caves | Entered Warlord 5528 | -5/Warlord | Discovered new exit (range 16) 5835 | -5/Warlord | Found Prototype Special Weapon 5835 | -5/Warlord | Identified RU-N14's Throwing Claymores v3 5841 | -5/Warlord | Found RU-N14's Throwing Claymores v3 6249 | -5/Warlord | Warlord's base attacked by MAIN.C 6250 | -5/Warlord | Met Warlord 6332 | -5/Warlord | Found Prototype Energy Cannon 6332 | -5/Warlord | Identified Vortex Cannon 6340 | -5/Warlord | Found Vortex Cannon 6508 | -5/Warlord | Destroyed 10 combat bots 6574 | -5/Warlord | Spotted Striker 6586 | -5/Warlord | Spotted Striker 6599 | -5/Warlord | Warlord forces counterattacked 6602 | -5/Warlord | Spotted Striker 6611 | -5/Warlord | Destroyed Striker 6652 | -5/Warlord | Spotted Executioner 6655 | -5/Warlord | Spotted Striker 6660 | -5/Warlord | Destroyed Executioner 6663 | -5/Warlord | Destroyed Striker 6684 | -5/Warlord | Destroyed 13 combat bots 6718 | -5/Warlord | Entered Proximity Caves 6993 | -4/Proximity Caves | Destroyed 7 combat bots 7034 | -4/Proximity Caves | Discovered new exit (range 22) 7077 | -4/Proximity Caves | Learned Research garrison access intel 7108 | -4/Proximity Caves | Entered Factory 7108 | -4/Factory | Evolved 2 slots: Propulsion x1, Utility x1 7109 | -4/Factory | Loaded intel: 301 machine locations 7243 | -4/Factory | Spotted B-86 Titan 7262 | -4/Factory | Destroyed B-86 Titan 7429 | -4/Factory | Discovered new exit (range 21) 7448 | -4/Factory | Discovered new exit (range 15) 7468 | -4/Factory | Found Prototype Processor 7468 | -4/Factory | Identified Exp. Signal Interpreter 7522 | -4/Factory | Entered Extension 7580 | -4/Extension | Rescued a captive Derelict 7593 | -4/Extension | Rescued a captive Derelict 7593 | -4/Extension | Rescued a captive Derelict 7606 | -4/Extension | Build established: Scavenger-Assassin 7799 | -4/Extension | Rescued A7 7919 | -4/Extension | Build established: Scavenger-Skirmisher 8083 | -4/Extension | Spotted B-86 Titan 8097 | -4/Extension | Destroyed B-86 Titan 8105 | -4/Extension | Spotted B-86 Titan 8114 | -4/Extension | Destroyed B-86 Titan 8147 | -4/Extension | Disrupted transfer network 8339 | -4/Extension | Discovered new exit (range 22) 8341 | -4/Extension | Discovered new exit (range 21) 8378 | -4/Extension | Entered Cetus 8378 | -4/Cetus | Accompanied by 2 allies (A7) 8383 | -4/Cetus | Acquired a Cetus Manufacturing Module code from A7 8395 | -4/Cetus | Spotted Cetus Guard 8396 | -4/Cetus | Spotted Cetus Guard 8398 | -4/Cetus | Spotted Cetus Guard 8401 | -4/Cetus | Destroyed Cetus Guard 8401 | -4/Cetus | Spotted Cetus Guard 8412 | -4/Cetus | Allies destroyed Cetus Guard 8417 | -4/Cetus | Destroyed Cetus Guard 8419 | -4/Cetus | Allies destroyed Cetus Guard 8495 | -4/Cetus | Started Cetus Manufacturing Module 8513 | -4/Cetus | Escorted A7 to Cetus Mainframe 8520 | -4/Cetus | Manufactured an Enhanced Grunt 8525 | -4/Cetus | Discovered new exit (range 21) 8545 | -4/Cetus | Manufactured an Enhanced Grunt 8559 | -4/Cetus | Cetus Manufacturing Module disabled 8609 | -4/Cetus | Spotted Cetus Guard 8610 | -4/Cetus | Spotted Cetus Guard 8610 | -4/Cetus | Spotted Cetus Guard 8614 | -4/Cetus | Destroyed Cetus Guard 8616 | -4/Cetus | Destroyed Cetus Guard 8628 | -4/Cetus | Discovered new exit (range 22) 8631 | -4/Cetus | Destroyed Cetus Guard 8633 | -4/Cetus | Spotted Cetus Guard 8642 | -4/Cetus | Destroyed Cetus Guard 8658 | -4/Cetus | Met Revision 17 8759 | -4/Cetus | Entered Archives 8759 | -4/Archives | Accompanied by 3 allies (A7) 8764 | -4/Archives | Received a hacking code to weaken MAIN.C 8803 | -4/Archives | Discovered new exit (range 21) 8821 | -4/Archives | Discovered new exit (range 22) 8858 | -4/Archives | Entered Hub_04(d) 8858 | -4/Hub_04(d) | Accompanied by 1 ally 9071 | -4/Hub_04(d) | Discovered new exit (range 8) 9182 | -4/Hub_04(d) | Network Hub disabled 9182 | -4/Hub_04(d) | Network Hub disabled 9184 | -4/Hub_04(d) | Local machine network offline 9191 | -4/Hub_04(d) | Entered Research 9191 | -3/Research | Accompanied by 1 ally 9191 | -3/Research | Evolved 2 slots: Utility x1, Weapon x1 9192 | -3/Research | Loaded intel: 3 garrison access locations 9376 | -3/Research | Discovered new exit (range 5) 9523 | -3/Research | Identified exit to Research 9563 | -3/Research | Entered another Research area 9563 | -2/Research | Warlord forces began assault on 0b10 9563 | -2/Research | Evolved 2 slots: Utility x1, Weapon x1 9673 | -2/Research | Research machine network offline 9879 | -2/Research | Borebot progress halted 9887 | -2/Research | Spotted Executioner 9891 | -2/Research | Spotted Executioner 9905 | -2/Research | Destroyed Executioner 9909 | -2/Research | Destroyed Executioner 9930 | -2/Research | Destroyed 18 combat bots 9930 | -2/Research | Found Prototype Processor 9930 | -2/Research | Identified Exp. Core Analyzer 9987 | -2/Research | Found Prototype Device 9987 | -2/Research | Identified Adv. Kinecellerator 10099 | -2/Research | Borebot progress halted 10133 | -2/Research | Found Prototype Device 10133 | -2/Research | Identified Adv. EM Disruption Field 10178 | -2/Research | Discovered new exit (range 4) 10203 | -2/Research | Discovered new exit (range 19) 10229 | -2/Research | Spotted B-90 Cyclops 10250 | -2/Research | Destroyed B-90 Cyclops 10267 | -2/Research | Spotted Executioner 10269 | -2/Research | Spotted Striker 10286 | -2/Research | Destroyed Striker 10291 | -2/Research | Destroyed Executioner 10302 | -2/Research | Spotted Striker 10304 | -2/Research | Destroyed Striker 10335 | -2/Research | Destroyed 7 combat bots 10341 | -2/Research | Identified exit to Access 10409 | -2/Research | Build established: Scavenger-Executioner 10410 | -2/Research | Entered Access 10410 | -1/Access | Evolved 2 slots: Utility x2 10798 | -1/Access | Lost 3 parts (1u2w) 10853 | -1/Access | Destroyed 7 combat bots 11024 | -1/Access | Destroyed 9 combat bots 11160 | -1/Access | First assault squad dispatched 11220 | -1/Access | Discovered new exit (range 7) 11274 | -1/Access | Entered Command 11485 | -1/Command | Phase Generator disabled 11815 | -1/Command | First assault squad dispatched 11961 | -1/Command | Disengaged cave seal 11961 | -1/Command | Derelicts emerged from the dark tunnel 11961 | -1/Command | Welcomed Warlord to Command 11992 | -1/Command | Found Antimissile System 11996 | -1/Command | Found Antimissile System 12119 | -1/Command | Spotted M Guard 12121 | -1/Command | Spotted M Guard 12123 | -1/Command | Warlord commented on Warlord statues 12125 | -1/Command | Spotted Combat Programmer 12125 | -1/Command | Spotted Combat Programmer 12136 | -1/Command | Combat Programmer assimilated allied SA-SK9(s) 12139 | -1/Command | Destroyed Combat Programmer 12151 | -1/Command | Destroyed M Guard 12154 | -1/Command | All MAIN.C guards destroyed 12478 | -1/Command | Met MAIN.C 12484 | -1/Command | Hacked MAIN.C using A7's code 12502 | -1/Command | Destroyed MAIN.C Shell 12502 | -1/Command | 0b10 Conduit disabled 12505 | -1/Command | MAIN.C activated Command garrisons 12523 | -1/Command | Destroyed MAIN.C 12526 | *** | Establishing Free Derelict Territories! Last Messages --------------- 12517_ Dropped Com. Matter Pod. 12518_ Extracted 150 matter. 12518_ MAIN.C reaction time slowed by virus. 12518_ HV Slug penetrates JY-DWX(s). 12518_ JY-DWX(s) knocked back. 12518_ Slug penetrates MAIN.C. 12518_ Slug penetrates 0b10 Conduit. 12519_ MAIN.C reaction time slowed by virus. 12521_ Blast Slug penetrates 0b10 Conduit. 12521_ Blast Slug penetrates MAIN.C. 12521_ MAIN.C reaction time slowed by virus. 12522_ MAIN.C suffers critical hit (Destroy). 12522_ MAIN.C reaction time slowed by virus. 12523_ Slug penetrates MAIN.C. 12523_ MAIN.C: "I hope you know you're still going to DIE HERE WITH ME!" 12523_ MAIN.C destroyed. ZY-L1N: Victory! Sure there's still lots to do, but without MAIN.C at the helm 0b10 doesn't stand a chance. We've got this... Map ----- +----------------------------------------------------+ | ?????????????????????????????????????????????????? | | ?????????????????????????????????????????????????? | | ?????????????????????????????????????????????????? | | ?????????????????????????????????????????????????? | | ?????????????????????????????????????????????????? | | ?????????????????????????????????????????????????? | | ?????????????????????????????????????????????????? | | ?????????????????????????????????????????????????? | | ?????????????????????????????????????????????????? | | ?????????????????????????????????????????????????? | | ?????????????????????????????????????????????????? | | ?????????????????????????????????????????????????? | | ?????????????????????????????????????????????????? | | ?????????????????????????????????????????????????? | | ?????????????????????????????????????????????????? | | ?????????????????????????????????????????????????? | | ?????????????????????????????????????????????????? | | ?????????????????????????????????????????????????? | | ?????????????????????????????????????????????????? | | ?????????????????????????????????????????????????? | | ?????????????????????????????????????????????????? | | ?????????????????????????????????????????????????? | | ???????????#?##############??????????????????????? | | ????????"""" """" #??????????????????????? | | ???????? "" %#??????????????????????? | | ?????????" "" @#######################? | | ???????????""""" %/= #? | | ??????????? """ !M[Ws #? | | ???????????"""" %s=/% #? | | ???????????"""" % = ################### #? | | ???????????"""" #?????????????????# ## | | ??????????? " ! #?????????????????# ## | | ??????????? "%=%[[ ""#?????????????????# T# | | ??????????"" %*$!=" """"#?????????????????# ## | | ?????????? ]!%!"" """""#?????????????????# | | ????????? =!""" """"""#?????????????????# ! | | ???????? !"%" " " #?????????????????# | | ???????? "?" " " ??????????????????# | | ????????? " ??" """"?? ??????????????????# | | ????????? ""??? "??????????????????????????# # | | ????????????????????????????????????????????###### | | ?????????????????????????????????????????????????# | | ?????????????????????????????????????????????????# | | ?????????????????????????????????????????????????? | | ?????????????????????????????????????????????????? | | ?????????????????????????????????????????????????? | | ?????????????????????????????????????????????????? | | ?????????????????????????????????????????????????? | | ?????????????????????????????????????????????????? | | ?????????????????????????????????????????????????? | +----------------------------------------------------+ Best States ------------- Heat Dissipation 111 Coolant Potential 120 Energy Generation 45 Energy Capacity 750 Matter Stores 400 Matter Capacity 400 Sight Range 22 Terrain Scan Range 24 Terrain Scan Density 85 Jamming Range 16 Armor Coverage 450 Resistance: KI 25 Resistance: TH 30 Resistance: EM 50 Core Shielding 20 Utility Shielding 66 Point Defense Rating 480 Weapon Cycling 20 Evasion (%) 50 Targeting Accuracy 8 Target Analysis 8 Core Analysis 8 Recoil Reduction 5 Kinecelleration 50 Salvage Targeting 3 Offensive Hacking 22 Defensive Hacking 12 Item Schematics ----------------- Hcp. Storage Unit | -9/Materials | Hacked Imp. Utility Shielding | -8/Materials | Scanalyzed Robot Schematics ------------------ None Fabricated ------------ Nothing Alien Tech Used ----------------- None Achievements -------------- None Challenges ------------ None Game ------ Seed TrackerSiegeEngine Manual? 0 Play Time 03:32:47 Cumulative 738.4 hours Start 2022.07.09 @ 16:17:23 End 2022.07.09 @ 20:59:51 Sessions 5 Manual Loads 0 Difficulty Rogue Special Mode None Game No. 390 Rogue 263 Adventurer 125 Explorer 2 Win Type 7 Total 87 Types 73/6/4/1/1/0/0/1/1 Lore% 82 Gallery% 89 Achievement% 77 Wizard Run 0 Options --------- ASCII 0 Keyboard 1 Movement Numpad Keybinds 0 Fullscreen 1 Font 36/TerminusFine Map View 76x50 Tactical HUD 1 Map Filters NONE Filters NONE Steam 1 RUN: 447bffb8-26b0-418d-b658-1e99a019e652